Cogmind - Beta 11 X5 @@@ ROGUE MODE // 2021.06.07 @ 17:12:39 Player: rusmal Result: Destroyed by D-53 Grenadier with Mini Grenade Launcher Performance ------------- Evolutions (0) 0 Regions Visited (2) 400 Robots Destroyed (23) 115 Value Destroyed (522) 522 Prototype IDs (4) 80 Alien Tech Used (0) 0 Bonus (0) 0 TOTAL SCORE: 1117 Bonus ------- None Cogmind --------- Core Integrity 0/250 Matter 225/300 Energy 239/250 System Corruption 2% Temperature Cool (0) Movement Rolling (120) Ox2 Location -10/Mines Parts ------- > --- POWER (1) -------- Ion Engine > --- PROPULSION (2) --- Light Treads Armored Wheel > --- UTILITY (2) ------ Large Storage Unit > --- WEAPON (2) ------- Heavy Assault Rifle > --- INVENTORY (15) --- Ion Engine Light Treads Armored Wheel Armored Wheel Cooling System Cargo Storage Unit Large Matter Pod (150) Hacking Suite Hacking Suite Light Assault Rifle Heavy Assault Rifle Heavy Assault Rifle Grenade Launcher Peak State ------------ > --- POWER ------------ Ion Engine > --- PROPULSION ------- Light Treads Armored Wheel > --- UTILITY ---------- Large Storage Unit Trap Extractor > --- WEAPON ----------- Heavy Assault Rifle Heavy Assault Rifle > --- INVENTORY -------- Ion Engine Ion Engine Light Treads Light Treads Armored Wheel Armored Wheel Armored Wheel Heat Sink Large Storage Unit Large Matter Pod Hacking Suite Light Assault Rifle Heavy Assault Rifle Heavy Assault Rifle Grenade Launcher [Rating: 13] Favorites ----------- Power Ion Engine Engine Ion Engine Propulsion Light Treads Treads Light Treads Wheel Armored Wheel Utility Large Storage Unit Device Trap Extractor Storage Large Storage Unit Protection Light Armor Plating Weapon Heavy Assault Rifle Energy Gun Medium Laser Ballistic Gun Heavy Assault Rifle Launcher Grenade Launcher Build | -11 -10 -10 ------- Run | Scr Mat Min Slots Evolved . | . . . Power . | . . . Propulsion . | . . . Utility . | . . . Weapon . | . . . Parts Attached 24 | 6 16 2 Power 3 | 1 2 . Engine 3 | 1 2 . Core . | . . . Reactor . | . . . Propulsion 7 | 2 4 1 Treads 3 | 1 1 1 Leg . | . . . Wheel 4 | 1 3 . Hover . | . . . Flight . | . . . Utility 7 | 1 6 . Device 1 | . 1 . Storage 4 | 1 3 . Processor . | . . . Hackware . | . . . Protection 2 | . 2 . Artifact . | . . . Weapon 7 | 2 4 1 Energy Gun 1 | . 1 . Energy Cannon . | . . . Ballistic Gun 5 | 2 2 1 Ballistic Cannon . | . . . Launcher 1 | . 1 . Special Weapon . | . . . Impact Weapon . | . . . Slashing Weapon . | . . . Piercing Weapon . | . . . Special Melee Weapon . | . . . Unidentified Prototypes . | . . . Parts Lost 6 | . 3 3 Power . | . . . Propulsion 3 | . 2 1 Utility 1 | . . 1 Weapon 2 | . 1 1 Highest Loss Streak 3 | . 3 2 Average Slot Usage (%) 99 | . 99 90 Engine 14 | . 14 14 Treads 14 | . 14 14 Wheel 13 | . 13 14 Storage 19 | . 19 14 Protection 7 | . 8 5 Energy Gun 5 | . 5 . Ballistic Gun 22 | . 22 23 Naked Turns . | . . . Heaviest Build 34 | 11 34 34 Greatest Support 20 | 10 20 12 Greatest Overweight (x) 2 | 1 2 2 Average Overweight (x) 1 | . 1 2 Largest Inventory Capacity 15 | 8 15 15 Average Capacity 13 | 7 13 15 Most Carried 15 | 6 15 15 Average Carried 12 | 2 12 14 Final Capacity 15 | 8 15 15 Final Carried 15 | 6 15 14 Class Distribution -------------------- 100% | Mutant Dominant Class ---------------- Mutant | -10/Materials Mutant | -10/Mines Resources | -11 -10 -10 ----------- Run | Scr Mat Min Matter Collected 917 | 183 602 132 Remotely . | . . . Salvage Created 807 | . 678 129 Parts 58 | . 58 . Haulers Intercepted 2 | . 2 . Recyclers Shooed 1 | . 1 . Parts Field Recycled . | . . . Retrieved Matter . | . . . Parts Self-Destructed . | . . . Prevented . | . . . Kills | -11 -10 -10 ------- Run | Scr Mat Min Combat Hostiles Destroyed 27 | . 18 9 Guns 27 | . 18 9 Classes Destroyed 6 | . 5 1 Builder 1 | . 1 . Hauler 2 | . 2 . Operator 2 | . 2 . Swarmer 6 | . 6 . Grunt 12 | . 12 . Assembled 9 | . . 9 Best Kill Streak 9 | . 5 9 Combat Bots Only 9 | . 5 9 Max Kills in Single Turn 2 | . 2 1 Gunslinging 1 | . 1 . Exploded . | . . . Melee . | . . . Uniques/NPCs Destroyed . | . . . Combat | -11 -10 -10 -------- Run | Scr Mat Min Damage Taken 1405 | . 817 588 Core 274 | . 154 120 Absorbed by Shields . | . . . Core Remaining (%) 100 | 100 . . Volleys Fired 109 | . 83 26 Largest 2 | . 2 2 Hottest 70 | . 70 46 Shots Fired 211 | . 159 52 Gun 211 | . 159 52 Cannon . | . . . Launcher . | . . . Special . | . . . Kinetic 184 | . 132 52 Thermal 27 | . 27 . Explosive . | . . . Electromagnetic . | . . . Robot Hit Streak 9 | . 9 8 Robot Miss Streak 4 | . 4 3 Penetration Max . | . . . Secondary Targets 4 | . 4 . Max Gunslinging Chain 1 | . 1 . Shots Hit Robots 140 | . 106 34 Core Hits 59 | . 42 17 Critical Kills 2 | . 1 1 Critical Parts Destroyed 1 | . 1 . Critical Strikes 4 | . 3 1 Burn 1 | . 1 . Destroy 3 | . 2 1 Melee Attacks . | . . . Impact . | . . . Slashing . | . . . Piercing . | . . . Sneak Attacks . | . . . Combat Hostiles . | . . . Follow-up Attacks . | . . . Damage Inflicted 1784 | . 1271 513 Guns 1784 | . 1271 513 Cannons . | . . . Explosions . | . . . Melee . | . . . Ramming . | . . . Kinetic 1530 | . 1017 513 Thermal 254 | . 254 . Explosive . | . . . Electromagnetic . | . . . Impact . | . . . Slashing . | . . . Piercing . | . . . Highest Corruption 2 | . 2 2 Average Corruption 1 | . 1 2 Corruption Purged . | . . . Effects 8 | . 8 . Message Errors 1 | . 1 . Heat Flow Errors 4 | . 4 . Energy Discharges 2 | . 2 . Data Loss (minor) 1 | . 1 . Overload Shots . | . . . Overflow Damage . | . . . Projectiles . | . . . Explosions . | . . . Melee . | . . . Knockbacks . | . . . Impact . | . . . Kinetic . | . . . Secondary . | . . . Self-Inflicted Damage . | . . . Shots . | . . . Rammed . | . . . Targets Rammed . | . . . Kicked . | . . . Crushed . | . . . Highest Temperature 308 | . 308 20 Average Temperature 65 | . 67 11 Received Heat Transfer 352 | . 312 40 Siege Activations . | . . . Robots Corrupted . | . . . Combat Hostiles . | . . . Parts Fried . | . . . Impact Corruptions . | . . . Robots Melted . | . . . Combat Hostiles . | . . . Parts Melted 1 | . 1 . Heat Transferred 814 | . 814 . Parts Sabotaged . | . . . Parts Stolen . | . . . Parts Stripped . | . . . Power Chain Reactions . | . . . Missiles Intercepted . | . . . Alert | -11 -10 -10 ------- Run | Scr Mat Min Peak Influence 210 | . 210 . Initial . | . . . Average 88 | . 98 . Maximum Alert Level 1 | . 1 . Low Security (%) 94 | 100 93 100 Level 1 5 | . 6 . Level 2 . | . . . Level 3 . | . . . Level 4 . | . . . Level 5 . | . . . High Security . | . . . Max Security . | . . . Squads Dispatched 6 | . 6 . Investigation 2 | . 2 . Extermination . | . . . Reinforcement 4 | . 4 . Assault . | . . . Garrison . | . . . Intercept . | . . . Construction Impeded . | . . . Haulers Reinforced . | . . . Cargo Convoy Interrupts . | . . . Stealth | -11 -10 -10 --------- Run | Scr Mat Min Distress Signals 3 | . 3 . Communications Jammed . | . . . Distress Signals . | . . . Times Spotted 48 | . 37 11 Peak Tracking Total 10 | . 6 10 Tactical Retreats 2 | . 2 . Traps | -11 -10 -10 ------- Run | Scr Mat Min Traps Triggered 5 | . 5 . Indirectly . | . . . Trap Hack Attempts . | . . . Triggered . | . . . Disarmed . | . . . Reprogrammed . | . . . Reused . | . . . Traps Extracted . | . . . Installed . | . . . Triggered . | . . . Machines | -11 -10 -10 ---------- Run | Scr Mat Min Machines Disabled . | . . . Max in Single Turn . | . . . Machines Sabotaged . | . . . Garrisons Compromised . | . . . Overloaded Fab Kills . | . . . Fab Network Shutdowns . | . . . Hacking | -11 -10 -10 --------- Run | Scr Mat Min Machines Accessed 6 | . 6 . Terminals 4 | . 4 . Fabricators . | . . . Repair Stations 1 | . 1 . Recycling Units 1 | . 1 . Scanalyzers . | . . . Garrison Access . | . . . Total Hacks 18 | . 18 . Successful 8 | . 8 . Failed 10 | . 10 . Catastrophic 1 | . 1 . Database Lockouts . | . . . Manual 11 | . 11 . Terminals 16 | . 16 . Fabricators . | . . . Repair Stations 1 | . 1 . Recycling Units 1 | . 1 . Scanalyzers . | . . . Garrison Access . | . . . Terminal Hacks 6 | . 6 . Record 1 | . 1 . Prototype ID Bank 2 | . 2 . Alert Level 1 | . 1 . Unreport Threat 1 | . 1 . Recall Investigation 1 | . 1 . Fabricator Hacks . | . . . Repair Station Hacks . | . . . Recycling Unit Hacks 1 | . 1 . Report Inventory 1 | . 1 . Scanalyzer . | . . . Garrison Access Hacks . | . . . Unauthorized Hacks 1 | . 1 . Terminals 1 | . 1 . Botnet 1 | . 1 . Fabricators . | . . . Repair Stations . | . . . Recycling Units . | . . . Scanalyzers . | . . . Garrison Access . | . . . Data Cores Recovered . | . . . Used . | . . . Hacking Detections 5 | . 5 . Full Trace Events 1 | . 1 . Feedback Events 1 | . 1 . Corruption 1 | . 1 . Feedback Blocked . | . . . Robot Schematics Acquired . | . . . Robots Built . | . . . Matter . | . . . Time . | . . . Total Robot Build Rating . | . . . Part Schematics Acquired . | . . . Parts Built . | . . . Matter . | . . . Time . | . . . Total Part Build Rating . | . . . Parts Repaired . | . . . Time . | . . . Parts Recycled . | . . . Recycled Matter . | . . . Retrieved Matter . | . . . Retrieved Components . | . . . Parts Scanalyzed . | . . . Part Schematics Acquired . | . . . Parts Damaged . | . . . Bothacking | -11 -10 -10 ------------ Run | Scr Mat Min Used RIF Installer . | . . . Robots Hacked . | . . . Non-combat . | . . . Combat . | . . . Robot Hacks Applied . | . . . Relay Couplers Released . | . . . Robots Rewired . | . . . Allies Hacked . | . . . Hacks Repelled . | . . . Allies | -11 -10 -10 -------- Run | Scr Mat Min Total Allies . | . . . Largest Group . | . . . Highest-Rated Group . | . . . Highest-Rated Ally . | . . . Total Orders . | . . . Ally Attacks . | . . . Total Damage . | . . . Kills . | . . . Allies Corrupted . | . . . Allies Melted . | . . . Intel | -11 -10 -10 ------- Run | Scr Mat Min Robot Analysis Total . | . . . Derelict Logs Recovered 2 | . . 2 Drone Launches . | . . . Drone Recoveries . | . . . Exploration | -11 -10 -10 ------------- Run | Scr Mat Min Turns Passed 1793 | 52 1612 129 Spaces Moved 991 | 43 907 41 Core 6 | 6 . . Treads 171 | . 171 . Legs . | . . . Wheels 814 | 37 736 41 Hover . | . . . Flight . | . . . Fastest Speed 50 | 50 95 120 Average Speed 133 | 85 136 120 Slowest Speed 260 | 95 260 120 Overloaded Moves . | . . . Propulsion Burnouts . | . . . Robots Hopped . | . . . Cave-ins Triggered . | . . . Exploration Rate (%) 38 | 3 94 17 Regions Visited 2 Branch Regions 1 Pre-discovered Areas . | . . . Known Exits Taken . | . . . Unknown Exits Taken 2 | 1 1 . Scrap Searched 1 | . . 1 Spaces Dug . | . . . Terrain Destroyed . | . . . Melee . | . . . Projectile . | . . . AOE . | . . . Terrain Rammed . | . . . Walls Destroyed . | . . . Machines Disabled . | . . . Actions | -11 -10 -10 --------- Run | Scr Mat Min Total 1274 | 54 1151 69 Wait 93 | . 93 . Move 989 | 42 906 41 Hop . | . . . Pick Up 33 | 6 27 . Fast Attach 11 | 6 5 . Attach 4 | . 3 1 Detach 1 | . 1 . Swap 9 | . 8 1 Drop 25 | . 25 . Fire 109 | . 83 26 Melee . | . . . Ram . | . . . Kick . | . . . Crush . | . . . Escape Stasis . | . . . Rewire . | . . . Trap . | . . . Miscellaneous . | . . . Route ------- -11/Scrapyard -10/Materials (discovered 4 exits: [*Mat x2] / [*Min x2]) -10/Mines History --------- Turn | Location | Event 34 | -11/Scrapyard | Discovered new exit (range 16) 53 | -11/Scrapyard | Entered Materials 275 | -10/Materials | Discovered new exit (range 11) 307 | -10/Materials | Build established: Mutant 371 | -10/Materials | Discovered new exit (range 14) 542 | -10/Materials | Lost 3 parts (2n1w) 1044 | -10/Materials | Discovered new exit (range 14) 1227 | -10/Materials | Core integrity fell below 50% 1498 | -10/Materials | Discovered new exit (range 8) 1665 | -10/Materials | Entered Mines 1701 | -10/Mines | Assembled infested the area 1705 | -10/Mines | Learned location of 1 exit from Materials 1706 | -10/Mines | Learned Materials stockpile data 1715 | -10/Mines | Met a Derelict bent on vengeance 1775 | -10/Mines | Core integrity fell below 20% 1794 | -10/Mines | Destroyed by D-53 Grenadier with Mini Grenade Launcher Last Messages --------------- 01731_ as-55917 destroyed. 01732_ Acquired 17 matter. 01736_ K-01 Serf destroyed. 01737_ as-21607 destroyed. 01738_ Acquired 10 matter. 01743_ as-13385 destroyed. 01744_ Acquired 15 matter. 01746_ as-61180 suffers critical hit (Destroy). 01746_ as-61180 destroyed. 01747_ Acquired 10 matter. 01755_ Destroyed Asb. Hover Unit. 01764_ as-50491 destroyed. 01765_ Acquired 14 matter. 01776_ as-84748 destroyed. 01777_ Acquired 17 matter. 01782_ Destroyed Asb. Hover Unit. 01785_ as-62302 destroyed. 01786_ Acquired 15 matter. 01792_ Hvy. Assault Rifle destroyed. 01792_ Lgt. Treads destroyed. Map ----- +----------------------------------------------------+ | ???????????????????????????????????????? | | ???????????????????????????????????????? | | ???????????????????????????????????????? | | ???????????????????????????????????????? | | ???????????????????????????????????????? | | ???????????????????????????????????????? | | ???????????????????????????????????????? | | ???????????????????????????????????????? | | ???????????????????????????????????????? | | ???????????????????????????????????????? | | ??????????????????#?#??????????????????? | | ?????????????????? ???????????????????? | | ????????????????? ???????????????????? | | ????????????????? #???????????????????? | | ????????????????? #????? ????????????? | | ????????????????#r ###?? ????????????? | | ???####????????#= ## ???????????? | | ??## #????#### # % ???????????? | | ??# ##???#%%*d ???????????? | | ??# ##??#%## $ ???????????? | | ?## #### # ????????????? | | ?# d #???????????????? | | ?# #???????????????? | | ?# ## ### #????????????????? | | ?# #####?# #?????????????????? | | ?# #?????# @ #?????????????????? | | ?# #?????# #????????????????? | | ?# #?????## #??????????????? | | ?# #??????# # #?????????????? | | ?# #??????##### #?????????????? | | ?# #???????????# """ ##?????????????? | | ?# ########?????# """ ##??????????????? | | ?#! ! #?????? """ #???????????????? | | ?#! #?????? ?????????????????? | | ?######## #??????? ??????????????????? | | ??####### #???????###?????????????????? | | ??# ## #???????????????????????????? | | ??# ## #???????????????????????????? | | ??# #???????????????????????????? | | ??# #???????????????????????????? | | ??# #####???????????????????????????? | | ??# #???????????????????????????????? | | ??######???????????????????????????????? | | ???????????????????????????????????????? | | | | | | | | | | | | | +----------------------------------------------------+ Best States ------------- Heat Dissipation 25 Energy Generation 10 Energy Capacity 250 Matter Stores 354 Matter Capacity 450 Sight Range 16 Terrain Scan Density 10 Armor Coverage 150 Evasion (%) 44 Recoil Reduction 2 Item Schematics ----------------- None Robot Schematics ------------------ None Fabricated ------------ Nothing Alien Tech Used ----------------- None Achievements -------------- None Challenges ------------ None Game ------ Seed BeamAntigravWheel Manual? 0 Play Time 00:15:04 Cumulative 60.4 hours Start 2021.06.07 @ 16:58:44 End 2021.06.07 @ 17:12:39 Sessions 1 Manual Loads 0 Difficulty Rogue Special Mode None Game No. 59 Rogue 59 Adventurer 0 Explorer 0 Win Type - Total 1 Types 1/0/0/0/0/0/0/0/0 Lore% 47 Gallery% 50 Achievement% 41 Wizard Run 0 Options --------- ASCII 1 Keyboard 1 Movement Numpad Keybinds 0 Fullscreen 2 Font 18/SmallcapsGlow Map View 76x50 Tactical HUD 1 Map Filters NONE Filters NONE Steam 1 RUN: 1ef7d82a-cb20-47f5-9c23-789dec5de5a6